Workbook

Sheet System (hidden)
A1: Форма | D1: Атрибуты | G1: Таблицы | I1: ORDERS | J1: NAME | K1: COL_COUNT | L1: CODE_COL | M1: ROW_COUNT | N1: VAL_TYPE | O1: Колонки | Q1: TABLE | R1: ORDERS | S1: NAME | T1: INPUT_MASK | U1: EDIT | V1: VAL_LEN | W1: COL_TYPE | X1: EXPORT_ORDER | Y1: PROPERTY
A2: CODE_FORM | B2: фхд_2017 | D2: REPORTS_ATR_MODIFY_D | E2: 1 | G2: COUNT_TABLE | H2: 2 | I2: 1 | J2: ФХД 1,2,5,6 раздел | K2: 5 | L2: 1 | M2: 0 | Q2: 1 | R2: 1 | S2: Ключ | U2: 0 | V2: 4 | W2: 1 | X2: 1 | Y2: 0
A3: NAME_FORM | B3: ПЛАН финансово-хозяйственной деятельности. Период действия формы: c 01.01.2017 | I3: 2 | J3: ФХД 3,4 раздел | K3: 13 | L3: 1 | M3: 0 | Q3: 1 | R3: 2 | S3: № п/п | U3: 0 | V3: 8 | W3: 1 | X3: 2 | Y3: 0
A4: DATE_FORM | B4: 01.01.2017 | Q4: 1 | R4: 3 | S4: Наименование показателя | U4: 0 | V4: 75 | W4: 1 | X4: 3 | Y4: 0
A5: DEP_CODE | B5: 101 | Q5: 1 | R5: 4 | S5: код строки | U5: 0 | V5: 10 | W5: 1 | X5: 4 | Y5: 0
A6: ORG_NAME | B6: Распорядитель Управление образования и молодежной политики администрации Уссурийского городского округа | Q6: 1 | R6: 5 | S6: Сумма | U6: 1 | V6: 2 | W6: 0 | X6: 5 | Y6: 0
A7: BUDG | B7: УС | Q7: 2 | R7: 1 | S7: Ключ | U7: 0 | V7: 5 | W7: 1 | X7: 1 | Y7: 8
A8: BUDG_NAME | B8: Бюджет Уссурийского городского округа | Q8: 2 | R8: 2 | S8: Наименование показателя | U8: 0 | V8: 143 | W8: 1 | X8: 2 | Y8: 0
A9: PERIOD_Y | B9: 2017 | Q9: 2 | R9: 3 | S9: Код строки | U9: 0 | V9: 10 | W9: 1 | X9: 3 | Y9: 0
A10: PERIOD_Q | B10: 1 | Q10: 2 | R10: 4 | S10: код БК | U10: 0 | V10: 8 | W10: 1 | X10: 4 | Y10: 0
A11: PERIOD_M | B11: 1 | Q11: 2 | R11: 5 | S11: / ВСЕГО закупки 2017г | U11: 1 | V11: 2 | W11: 0 | X11: 5 | Y11: 0
A12: BEGIN_DATE | B12: 31.01.2017 | Q12: 2 | R12: 6 | S12: / ВСЕГО закупки 2018г | U12: 1 | V12: 2 | W12: 0 | X12: 6 | Y12: 0
A13: PERIOD_TYPE | B13: 4 | Q13: 2 | R13: 7 | S13: / ВСЕГО закупки 2019г | U13: 1 | V13: 2 | W13: 0 | X13: 7 | Y13: 0
A14: PERIOD_NUMBER | B14: 1 | Q14: 2 | R14: 8 | S14: ВСЕГО / 44фз 2017г | U14: 1 | V14: 2 | W14: 0 | X14: 8 | Y14: 0
A15: PERIOD | Q15: 2 | R15: 9 | S15: субсидия МЗ/ 44фз 18г | U15: 1 | V15: 2 | W15: 0 | X15: 9 | Y15: 0
A16: USER | B16: use | Q16: 2 | R16: 10 | S16: субсидия БК 78.1/ 44фз 19г | U16: 1 | V16: 2 | W16: 0 | X16: 10 | Y16: 0
A17: WEB | Q17: 2 | R17: 11 | S17: субсидии кап.вложения / 223фз 2017г | U17: 1 | V17: 0 | W17: 0 | X17: 11 | Y17: 0
A18: USERPROXY | Q18: 2 | R18: 12 | S18: поступл.от оказ услуг / 223фз 2018г | U18: 1 | V18: 2 | W18: 0 | X18: 12 | Y18: 0
A19: VERSION_FORM | B19: 0 | Q19: 2 | R19: 13 | S19: гранты / 223фз 2019г | U19: 1 | V19: 2 | W19: 0 | X19: 13 | Y19: 0
A20: PROXY
A21: PORT
A22: SQL_SERVER | B22: 192.168.1.2
A23: BASE | B23: svod_2014
A24: Заголовок
A27: Ячейка
A31: 1 квартал | B31: 1
A32: 2 квартал | B32: 2
A33: 3 квартал | B33: 3
A34: 4 квартал | B34: 4
A36: Январь | B36: 1
A37: Февраль | B37: 2
A38: Март | B38: 3
A39: Апрель | B39: 4
A40: Май | B40: 5
A41: Июнь | B41: 6
A42: Июль | B42: 7
A43: Август | B43: 8
A44: Сентябрь | B44: 9
A45: Октябрь | B45: 10
A46: Ноябрь | B46: 11
A47: Декабрь | B47: 12

Sheet Реквизиты
B1: Excel-клиент v 1.4
B2: Форма:фхд_2017 ПЛАН финансово-хозяйственной деятельности. Период действия формы: c 01.01.2017
B24: Атрибуты | C24: Дата последнего изменения

Sheet Таблица 1
A1: ФХД 1,2,5,6 раздел
A2: 121216
A3: Ключ | B3: № п/п | C3: Наименование показателя | D3: код строки | E3: Сумма
A4: 1 | B4: 2 | C4: 3 | D4: 4 | E4: 5
A5: 900 | C5: I. Сведения о деятельности учреждения | E5: 0
A6: 1000 | B6: 1 | C6: Цели и виды деятельности | E6: 0
A7: 1100 | B7: 2 | C7: Перечень услуг (работ) | E7: 0
A8: 1200 | B8: 3 | C8: Общая балансовая стоимость НЕДВИЖИМОГО мун. имущества | E8: 18101131.01
A9: 1300 | C9: на праве оперативного управления | E9: 18101131.01
A10: 1400 | C10: за счет выделенных средств | E10: 0
A11: 1500 | C11: за счет доходов (от иной деятельности) | E11: 0
A12: 1600 | B12: 4 | C12: Общая балансовая стоимость ДВИЖИМОГО мун. имущества | E12: 7958188.22
A13: 1700 | C13: особо ценное имущество | E13: 995086.17
A14: 1800 | C14: ll. Показатели финансового состояния | E14: 0
A15: 1900 | E15: 0
A16: 2000 | C16: (запрет) | E16: 0
A17: 2100 | B17: № п/п | C17: наименование показателя / сумма | E17: 0
A18: 2200 | B18: 1 | C18: Нефинансовые активы всего | E18: 73926455.42
A19: 2300 | B19: 1.1. | C19: из них : недвижимое, всего | E19: 18101131.01
A20: 2400 | B20: 1.1.1. | C20: в том числе: остаточная стоимость | E20: 11193326.7
A21: 2500 | B21: 1.2. | C21: особо ценное движимое, всего | E21: 995086.17
A22: 2600 | B22: 1.2.1. | C22: в том числе: остаточная стоимость | E22: 15509.84
A23: 2700 | B23: 2 | C23: Финансовые активы всего | E23: -73099621.46
A24: 2800 | B24: 2.1. | C24: из них: денежные средства, всего | E24: 17935.27
A25: 2900 | B25: 2.1.1. | C25: в том числе: денежные срведства на счетах | E25: 17935.27
A26: 3000 | B26: 2.2. | C26: денежные средства на депозитах в кредитных организациях
A27: 3100 | B27: 2.3. | C27: иные финансовые документы
A28: 3200 | B28: 2.4. | C28: дебиторская задолженность по доходам | E28: 92793.94
A29: 3300 | B29: 2.5. | C29: дебиторская задолженность по расходам | E29: 86742.52
A30: 3400 | B30: 3 | C30: Обязательства всего | E30: 15747.25
A31: 3500 | B31: 3.1. | C31: из них: долговые обязательства | E31: 0
A32: 3600 | B32: 3.2. | C32: кредиторская задолженность | E32: 13515.86
A33: 3700 | B33: 3.2.1. | C33: в том числе: просроченная кредиторская задолж. | E33: 0
A34: 3800 | C34: V Сведения о средствах, поступивших во временное распоряжение | E34: 0
A35: 3900 | E35: 0
A36: 4000 | E36: 0
A37: 4100 | C37: наименование показателя / код строки / сумма | E37: 0
A38: 4200 | C38: Остаток средств на начало года | D38: 010 | E38: 0
A39: 4300 | C39: Остаток средств на конец года | D39: 020 | E39: 0
A40: 4400 | C40: Поступление | D40: 030 | E40: 0
A41: 4500 | C41: Выбытие | D41: 040 | E41: 0
A42: 4600 | C42: VI Справочная информация | E42: 0
A43: 4700 | C43: наименование показателя / код строки / сумма | E43: 0
A44: 4800 | C44: Объем публичных обязательств, всего | D44: 010 | E44: 0
A45: 4900 | C45: Объем бюджетных инвестиций (переданные полномочия), всего | D45: 020 | E45: 0
A46: 5000 | C46: Объем средств, поступивших во временное распоряжение, всего | D46: 030 | E46: 0

Sheet Таблица 2
A1: ФХД 3,4 раздел
A3: Ключ | B3: Наименование показателя | C3: Код строки | D3: код БК | E3: не заполняется / ВСЕГО закупки 2017г | F3: не заполняется / ВСЕГО закупки 2018г | G3: не заполняется / ВСЕГО закупки 2019г | H3: ВСЕГО / 44фз 2017г | I3: субсидия МЗ / 44фз 18г | J3: субсидия БК 78.1 / 44фз 19г | K3: субсидии кап.вложения / 223фз 2017г | L3: поступл.от оказ услуг / 223фз 2018г | M3: гранты / 223фз 2019г | N3: заполняется только 2017
A4: 1 | B4: 2 | C4: 3 | D4: 4 | E4: 5 | F4: 6 | G4: 7 | H4: 8 | I4: 9 | J4: 10 | K4: 11 | L4: 12 | M4: 13
A5: 1000 | B5: III. Показатели по поступлениям и выплатам | E5: 0 | F5: 0 | G5: 0 | H5: 0 | I5: 0 | J5: 0 | K5: 0 | L5: 0 | M5: 0
A6: 1100 | B6: на 1 января 2017г. | E6: 0 | F6: 0 | G6: 0 | H6: 0 | I6: 0 | J6: 0 | K6: 0 | L6: 0 | M6: 0
A7: 1200 | E7: 0 | F7: 0 | G7: 0 | H7: 0 | I7: 0 | J7: 0 | K7: 0 | L7: 0 | M7: 0
A8: 1300 | E8: 0 | F8: 0 | G8: 0 | H8: 0 | I8: 0 | J8: 0 | K8: 0 | L8: 0 | M8: 0
A9: 1400 | E9: 0 | F9: 0 | G9: 0 | H9: 0 | I9: 0 | J9: 0 | K9: 0 | L9: 0 | M9: 0
A10: 1500 | E10: 0 | F10: 0 | G10: 0 | H10: 0 | I10: 0 | J10: 0 | K10: 0 | L10: 0 | M10: 0
A11: 1600 | B11: ПОСТУПЛЕНИЯ ОТ ДОХОДОВ, ВСЕГО: | C11: 100 | D11: Х | E11: 0 | F11: 0 | G11: 0 | H11: =H12+H13+H14+H15+H16+H17+H21 -> 42934499 | I11: =I13 -> 40385867 | J11: =J16 -> 1682632 | K11: =K16 -> 0 | L11: =L13+L17+L12 -> 866000 | M11: =M13+M14+M15+M17+M21 -> 0
A12: 1700 | B12: в том числе: доходы от собственности | C12: 110 | E12: 0 | F12: 0 | G12: 0 | H12: =L12 -> 0 | I12: 0 | J12: 0 | K12: 0 | M12: 0
A13: 1800 | B13: доходы от оказания услуг, работ | C13: 120 | E13: 0 | F13: 0 | G13: 0 | H13: =I13+L13+M13 -> 40385867 | I13: 40385867 | J13: 0 | K13: 0
A14: 1900 | B14: доходы от штрафов, пеней иных сумм принудительного изъятия | C14: 130 | E14: 0 | F14: 0 | G14: 0 | H14: =M14 -> 0 | I14: 0 | J14: 0 | K14: 0 | L14: 0
A15: 2000 | B15: безвозм.поступл. от наднац.орг.,правит.иностр.госуд.,международ.финан.организ. | C15: 140 | E15: 0 | F15: 0 | G15: 0 | H15: =M15 -> 0 | I15: 0 | J15: 0 | K15: 0 | L15: 0
A16: 2100 | B16: иные субсидии, предоставляемые из бюджета | C16: 150 | E16: 0 | F16: 0 | G16: 0 | H16: =J16+K16 -> 1682632 | I16: 0 | J16: 1682632 | L16: 0 | M16: 0
A17: 2200 | B17: прочие доходы | C17: 160 | E17: 0 | F17: 0 | G17: 0 | H17: =L17+M17 -> 866000 | I17: 0 | J17: 0 | K17: 0 | L17: =L18+L19+L20 -> 866000 | M17: =M18+M19+M20 -> 0
A18: 2300 | B18: в том числе род.плата | C18: 161 | E18: 0 | F18: 0 | G18: 0 | H18: =L18+M18 -> 0 | I18: 0 | J18: 0 | K18: 0
A19: 2400 | B19: платные услуги | C19: 162 | E19: 0 | F19: 0 | G19: 0 | H19: =L19+M19 -> 836000 | I19: 0 | J19: 0 | K19: 0 | L19: 836000
A20: 2500 | B20: добровольные пожертвования | C20: 163 | E20: 0 | F20: 0 | G20: 0 | H20: =L20+M20 -> 30000 | I20: 0 | J20: 0 | K20: 0 | L20: 30000
A21: 2600 | B21: доходы от операций с активами | C21: 180 | E21: 0 | F21: 0 | G21: 0 | H21: =M21 -> 0 | I21: 0 | J21: 0 | K21: 0 | L21: 0
A22: 2700 | B22: ВЫПЛАТЫ ПО РАСХОДАМ, ВСЕГО: | C22: 200 | D22: Х | E22: 0 | F22: 0 | G22: 0 | H22: =H23+H27+H32+H33+H34+H41 -> 42934499 | I22: 40385867 | J22: 1682632 | K22: 0 | L22: 866000 | M22: 0
A23: 2800 | B23: в том числе, на выплаты персоналу всего: | C23: 210 | E23: 0 | F23: 0 | G23: 0 | H23: =H24 -> 35069967 | I23: 34269967 | J23: 0 | K23: 0 | L23: 800000 | M23: 0
A24: 2900 | B24: из них:оплата труда и начисл.на выплаты по опл.тр. | C24: 211 | E24: 0 | F24: 0 | G24: 0 | H24: =H25+H26 -> 35069967 | I24: 34269967 | J24: 0 | K24: 0 | L24: 800000 | M24: 0
A25: 3000 | B25: из них: оплата труда: | D25: 111 | E25: 0 | F25: 0 | G25: 0 | H25: =I25+J25+K25+L25+M25 -> 26821015 | I25: =25487200+833815 -> 26321015 | L25: 500000
A26: 3100 | B26: начисления на выплаты по оплате труда | D26: 119 | E26: 0 | F26: 0 | G26: 0 | H26: =I26+J26+K26+L26+M26 -> 8248952 | I26: =7697140+251812 -> 7948952 | L26: 300000
A27: 3200 | B27: Социальные или иные выплаты населению, всего | C27: 220 | E27: 0 | F27: 0 | G27: 0 | H27: =H28+H29+H30+H31 -> 3600 | I27: 3600 | J27: 0 | K27: 0 | L27: 0 | M27: 0
A28: 3300 | B28: из них: прочие выплаты | D28: 112 | E28: 0 | F28: 0 | G28: 0 | H28: =I28+J28+K28+L28+M28 -> 0
A29: 3400 | B29: прочие расходы (иные выплаты персоналу учрежд.,за исключ.фонда опл.труда) | D29: 112 | E29: 0 | F29: 0 | G29: 0 | H29: 3600 | I29: 3600
A30: 3500 | B30: транспортные услуги | D30: 112 | E30: 0 | F30: 0 | G30: 0 | H30: 0
A31: 3600 | B31: прочие услуги | D31: 112 | E31: 0 | F31: 0 | G31: 0 | H31: 0
A32: 3700 | B32: Уплата налогов, сборов и иных платежей, всего | C32: 230 | E32: 0 | F32: 0 | G32: 0 | H32: 0
A33: 3800 | B33: Безвозмездные перечисления организациям | C33: 240 | E33: 0 | F33: 0 | G33: 0 | H33: 0
A34: 3900 | B34: Прочие расходы(кроме расх.на закупку товаров,работ,услуг) | C34: 250 | E34: 0 | F34: 0 | G34: 0 | H34: =H35+H36+H37+H38+H39+H40 -> 952903 | I34: 952903 | J34: 0 | K34: 0 | L34: 0 | M34: 0
A35: 4000 | B35: прочие расходы(питание спортсменов) | D35: 113 | E35: 0 | F35: 0 | G35: 0 | H35: =I35+J35+K35+L35+M35 -> 0
A36: 4100 | B36: прочие расходы(трудоустройство несовершен.граждан(трудовые бригады) | D36: 360 | E36: 0 | F36: 0 | G36: 0 | H36: 0
A37: 4200 | B37: прочие расходы(возмещение истцу расх. на гос.пошлину и уплата неустойки, оплюрасходов на экспертизу суд.актом,возмещ.ущерба должн.лицом по суду | D37: 831 | E37: 0 | F37: 0 | G37: 0 | H37: 0
A38: 4300 | B38: прочие расходы(уплата налога на имущ.организаций,земельного налога) | D38: 851 | E38: 0 | F38: 0 | G38: 0 | H38: 942103 | I38: 942103
A39: 4400 | B39: прочие расходы(уплата трансп.налога,плата за загрязн.окр.среды,госпошлина учр.-ответчика по реш.суда) | D39: 852 | E39: 0 | F39: 0 | G39: 0 | H39: 10800 | I39: 10800
A40: 4500 | B40: прочие расходы(уплата штрафов,пеней(в т.ч. за несвоевремен.упл.налогов и сборов) | D40: 853 | E40: 0 | F40: 0 | G40: 0 | H40: 0
A41: 4600 | B41: Расходы на закупку товаров,работ,услуг,всего | C41: 260 | D41: Х | E41: 0 | F41: 0 | G41: 0 | H41: =H42+H45+H47 -> 6908029 | I41: 5159397 | J41: 1682632 | K41: 0 | L41: 66000 | M41: 0
A42: 4700 | B42: Закупка товаров,работ,услуг на капит.ремонт гос.(мун.) имущества | C42: 261 | E42: 0 | F42: 0 | G42: 0 | H42: =I42+J42+K42+L42+M42 -> 0 | I42: =I43+I44 -> 0 | J42: =J43+J44 -> 0 | K42: =K43+K44 -> 0 | L42: =L43+L44 -> 0 | M42: =M43+M44 -> 0
A43: 4800 | B43: услуги по содержанию имущества | D43: 243 | E43: 0 | F43: 0 | G43: 0 | H43: =I43+J43+K43+L43+M43 -> 0
A44: 4900 | B44: прочие услуги | D44: 243 | E44: 0 | F44: 0 | G44: 0 | H44: =I44+J44+K44+L44+M44 -> 0
A45: 5000 | B45: Затраты на строит.объектов недвиж.имущ. гос.(мун.) учрежд. | C45: 262 | E45: 0 | F45: 0 | G45: 0 | H45: =H46 -> 0 | I45: 0 | J45: 0 | K45: 0 | L45: 0 | M45: 0
A46: 5100 | B46: прочие услуги | D46: 417 | E46: 0 | F46: 0 | G46: 0 | H46: =I46+J46+K46+L46+M46 -> 0
A47: 5200 | B47: Прочая закупка товаров,работ и услуг для обеспечен.гос.(мун.) нужд | C47: 263 | E47: 0 | F47: 0 | G47: 0 | H47: =I47+J47+K47+L47+M47 -> 6908029 | I47: =I48+I49+I50+I51+I52+I53+I54+I55+I56 -> 5159397 | J47: =J48+J49+J50+J51+J52+J53+J54+J55+J56 -> 1682632 | K47: =K48+K49+K50+K51+K52+K53+K54+K55+K56 -> 0 | L47: =L48+L49+L50+L51+L52+L53+L54+L55+L56 -> 66000 | M47: =M48+M49+M50+M51+M52+M53+M54+M55+M56 -> 0
A48: 5300 | B48: услуги связи | D48: 244 | E48: 0 | F48: 0 | G48: 0 | H48: =I48+J48+K48+L48+M48 -> 70382 | I48: 67382 | L48: 3000
A49: 5400 | B49: транспортные услуги | D49: 244 | E49: 0 | F49: 0 | G49: 0 | H49: 0 | L49: 0
A50: 5500 | B50: коммунальные услуги | D50: 244 | E50: 0 | F50: 0 | G50: 0 | H50: 2301813 | I50: 2298813 | L50: 3000
A51: 5600 | B51: арендная плата за пользование имущества | D51: 244 | E51: 0 | F51: 0 | G51: 0 | H51: 0
A52: 5700 | B52: услуги по содержанию имущества | D52: 244 | E52: 0 | F52: 0 | G52: 0 | H52: 495849 | I52: 479589 | J52: 16260 | L52: 0
A53: 5800 | B53: прочие услуги | D53: 244 | E53: 0 | F53: 0 | G53: 0 | H53: 412298 | I53: 395798 | J53: 1500 | L53: 15000
A54: 5900 | B54: прочие расходы (призы,кубки) | D54: 244 | E54: 0 | F54: 0 | G54: 0 | H54: 0
A55: 6000 | B55: приобретение основных средств | D55: 244 | E55: 0 | F55: 0 | G55: 0 | H55: 1863595 | I55: 1844845 | J55: 3750 | L55: 15000
A56: 6100 | B56: приобретение материальных запасов | D56: 244 | E56: 0 | F56: 0 | G56: 0 | H56: 1764092 | I56: 72970 | J56: 1661122 | L56: 30000
A57: 6200 | B57: Поступление финансовых активов, всего | C57: 300 | D57: х | E57: 0 | F57: 0 | G57: 0 | H57: 0
A58: 6300 | B58: из них: увеличение остатков средств | C58: 310 | E58: 0 | F58: 0 | G58: 0 | H58: 0
A59: 6400 | B59: Прочие поступления | C59: 320 | E59: 0 | F59: 0 | G59: 0 | H59: 0
A60: 6500 | B60: Выбытие финансовых активов, всего | C60: 400 | E60: 0 | F60: 0 | G60: 0 | H60: 0
A61: 6600 | B61: из них: уменьшение остатков средств | C61: 410 | E61: 0 | F61: 0 | G61: 0 | H61: 0
A62: 6700 | B62: прочие выбытия | C62: 420 | E62: 0 | F62: 0 | G62: 0 | H62: 0
A63: 6800 | B63: Остаток средств на начало года | C63: 500 | D63: х | E63: 0 | F63: 0 | G63: 0 | H63: 0
A64: 6900 | B64: Остаток средств на конец года | C64: 600 | D64: х | E64: 0 | F64: 0 | G64: 0 | H64: 0 | I64: 0 | J64: 0 | K64: 0 | L64: 0 | M64: 0
A65: 7000 | B65: IV. Показатели по поступлениям и выплатам учреждения | E65: ВСЕГО закупки 2017г | F65: ВСЕГО закупки 2018г | G65: ВСЕГО закупки 2019г | H65: 44фз 2017г | I65: 44фз 18г | J65: 44фз 19г | K65: 223фз 2017г | L65: / 223фз 2018г | M65: 223фз 2019г | N65: заполняется 2017, 2018, 2019
A66: 7100 | B66: на 1 января 2017 года
A67: 7200
A68: 7300
A69: 7400
A70: 7500
A71: 7600 | B71: Выплаты по расходам на закупку товаров,рабт,услуг,всего: | C71: 0001 | D71: х | E71: =H71+K71 -> 6908029 | F71: =I71+L71 -> 6980958 | G71: 7089140 | H71: 6908029 | I71: 6980958 | J71: 7089140 | K71: 0 | L71: 0 | M71: 0
A72: 7700 | B72: в том числе:на оплату контрактов,закюч. до начала очередного фин.года: | C72: 1001 | D72: х | E72: =H72+K72 -> 1661122 | F72: 1661122 | G72: 1661122 | H72: 1661122 | I72: 1661122 | J72: 1661122
A73: 7800 | B73: на закупку товаров,работ,услуг по году начала закупки: | C73: 2001 | E73: =H73+K73 -> 5246907 | F73: 5319836 | G73: 5428018 | H73: =H71-H72 -> 5246907 | I73: =I71-I72 -> 5319836 | J73: 5428018

Sheet печать
A1: Согласовано | I1: Утверждаю | M1: 2111
A2: Начальник управления образования | I2: И.о.директора МБОУ СОШ № 28
A3: и молодежной политики
A4: __________________ О.Н.Минашкина | I4: _____________________________А.А.Пономаренко
A5: "______" ____________________ 2016 г. | I5: "_______" ___________________ 2016 г. | O5: ФОРМУЛЫ САМОКОНТРОЛЯ
O7: 2017
A8: ПЛАН | O8: =G58-G69+G110 -> 0 | P8: должно равняться нулю
A9: ФИНАНСОВО-ХОЗЯЙСТВЕННОЙ ДЕЯТЕЛЬНОСТИ | O9: всего | P9: (доход+ остаток на начало года-расход)
A10: на 2017 год и плановый период 2018-2019 гг.
A12: Дата составления "_____" _______________ 2016 г.
A13: Наименование учреждения | F13: Муниципальное бюджетное общеобразовательное учреждение "Средняя общеобразовательная школа № 28 " г. Уссурийска Уссурийского городского округа | O13: субсидия МЗ | P13: субсидия БК 78.1 | Q13: субсидии кап.вложения | R13: поступл.от оказ услуг / | S13: гранты /
A14: Наименование органа, осуществляющего функции и полномочия учредителя | F14: Управление образования и моложёжной политики администрация Уссуриского городского округа | O14: ='Таблица 2'!I11+'Таблица 2'!I63-'Таблица 2'!I22 -> 0 | P14: ='Таблица 2'!J11+'Таблица 2'!J63-'Таблица 2'!J22 -> 0 | Q14: ='Таблица 2'!K11+'Таблица 2'!K63-'Таблица 2'!K22 -> 0 | R14: ='Таблица 2'!L11+'Таблица 2'!L63-'Таблица 2'!L22 -> 0 | S14: ='Таблица 2'!M11+'Таблица 2'!M63-'Таблица 2'!M22 -> 0 | T14: должно равняться нулю, разница по каждому разделу- пост+ост-расх
A15: Адрес фактического местонахождения | F15: 692502, Российская Федерация, Приморский край, г. Уссурийск, ул. Владивостокское шоссе, 113 А
A16: ИНН/КПП, код по реестру участников бюджетного процесса, а так же юридических лиц, не являющихся участниками бюджетного процесса | F16: 2511007955/251101001 ; 20206У49010
A17: Единица измерения | F17: Рубль
A18: Финансовый год (финансовый год и плановый период), на который представлены сведения | F18: 2017 год и плановый период 2018-2019 гг.
A19: Наименование органа, осуществляющего ведение лицевого счета | F19: Отдел № 11 Управления Федерального казначейства по Приморскому краю
A20: I. Сведения о деятельности учреждения
A21: 1. Цели и виды деятельности учреждения (указываются в соответствии с нормативными правовыми актами и уставом учреждения) | F21: Цель- формирование общей культуры личности обучающихся на основе усвоения обязательного минимума содержания общеобразовательных программ; адаптация обучающихся к жизни в обществе, создание основы для осознанного выбора и последующего освоения профессиональных образовательных программ; воспитание гражданственности, трудолюбия обучающихся, уважения к правам и свободам человека, любви к окружающей природе, Родине, семье; формирование здорового образа жизни обучающихся; формирование установок толерантного поведения.
A22: 2. Перечень услуг (работ), относящихся в соответствии с уставом учреждения к основным видам деятельности учреждения, предоставление которых для физических и юридических лиц осуществляется, в том числе за плату | F22: предоставление услуг по содержанию детей во внеучебное время; подготовка уроков, клубные часы, прогулки на свежем воздухе, спортивные мероприятия, посещение кинотеатра, музеев, выставок, бассейна; репетиторство с обучающимися другого образовательного учреждения; дополнительное образование в студиях, кружках, секциях (деятельность которых выходит за рамки основной образовательной программы) художественной и иных направленностей; преподавание курсов и циклов дисциплин за рамками основных образовательных программ по предметам учебного плана; предоставление услуг по подготовке детей к школе (адаптации детей к условиям школьной жизни) – интеллектуальное развитие детей через занятия по обучению грамоте, математике, письму; дополнительное психологическое обслуживание обучающихся (мониторинги, скиринг - осмотры и т.д.), дополнительные услуги психолога школы родителям обучающихся; информационные услуги для всех участников образовательного процесса школы: использование фондов аудио-, видео-, медиапродуктов, электронных баз данных, электронного варианта полнотекстовых баз данных; организация работы в Интернете (навигация по Интернету, поиск и получение информации с сайтов (работа в режиме On-line, услуги электронной почты, дистанционное образование); услуги по организации досуга детей (дискотеки, клубы по интересам, творческие мастерские, лектории, театры, концертная деятельность, организация экскурсий, туристических походов, спортивно–зрелищных мероприятий); услуги по получению дополнительных знаний (занятия с обучающимися по предметам для подготовки к экзаменам в форме единого государственного экзамена и государственной итоговой аттестации); услуги по проведению занятий в различных секциях и группах по укреплению здоровья для детей и взрослых; проведение спортивных праздников и соревнований; проведение занятий на футбольном поле, волейбольной площадке, баскетбольной площадке, легкоатлетической дорожке, гимнастическом городке, хоккейной площадке.
A23: 3. Общая балансовая стоимость недвижимого муниципального имущества на дату составления Плана, в том числе: | F23: ='Таблица 1 '!E8 -> 18101131.01
A24: стоимость имущества, закрепленного собственником имущества за учреждением на праве оперативного управления; | F24: ='Таблица 1 '!E9 -> 18101131.01
A25: стоимость имущества, приобретенного учреждением за счет выделенных собственником имущества учреждения средств; | F25: ='Таблица 1 '!E10 -> 0
A26: стоимость имущества, приобретенного учреждением за счет доходов, полученных от иной приносящей доход деятельности | F26: ='Таблица 1 '!E11 -> 0
A27: 4. Общая балансовая стоимость движимого муниципального имущества на дату составления Плана, в том числе: | F27: ='Таблица 1 '!E12 -> 7958188.22
A28: балансовая стоимость особо ценного движимого имущества | F28: ='Таблица 1 '!E13 -> 995086.17
A29: II. Показатели финансового состояния учреждения
A30: на 01 января 2017 г.
F31: (последнюю отчетную дату)
A32: № п/п | B32: Наименование показателя | F32: Сумма, руб.
A33: 1 | B33: 2 | F33: 3
A34: 1 | B34: Нефинансовые активы, всего: | F34: ='Таблица 1 '!E18 -> 73926455.42
A35: 1.1. | B35: из них: недвижимое имущество, всего: | F35: ='Таблица 1 '!E19 -> 18101131.01
A36: 1.1.1. | B36: в том числе: остаточная стоимость | F36: ='Таблица 1 '!E20 -> 11193326.7
A37: 1.2. | B37: особо ценное движимое имущество, всего: | F37: ='Таблица 1 '!E21 -> 995086.17
A38: 1.2.1. | B38: в том числе: остаточная стоимость | F38: ='Таблица 1 '!E22 -> 15509.84
A39: 2 | B39: Финансовые активы, всего: | F39: ='Таблица 1 '!E23 -> -73099621.46
A40: 2.1. | B40: из них: денежные средства учреждения ,всего: | F40: ='Таблица 1 '!E24 -> 17935.27
A41: 2.1.1. | B41: в том числе: денежные средства учреждения на счетах | F41: ='Таблица 1 '!E25 -> 17935.27
A42: 2.2. | B42: денежные средства учреждения, размещенные на депозиты в кредитной организации | F42: ='Таблица 1 '!E26 -> 0
A43: 2.3. | B43: иные финансовые инструменты | F43: ='Таблица 1 '!E27 -> 0
A44: 2.4. | B44: дебиторская задолженность по доходам | F44: ='Таблица 1 '!E28 -> 92793.94
A45: 2.5. | B45: дебиторская задолженность по расходам | F45: ='Таблица 1 '!E29 -> 86742.52
A46: 3. | B46: Обязательства, всего: | F46: ='Таблица 1 '!E30 -> 15747.25
A47: 3.1. | B47: из них: долговые обязательства | F47: ='Таблица 1 '!E31 -> 0
A48: 3.2. | B48: кредиторская задолженность: | F48: ='Таблица 1 '!E32 -> 13515.86
A49: 3.2.1. | B49: в том числе: просроченная кредиторская задолженность | F49: ='Таблица 1 '!E33 -> 0
A50: III. Показатели по поступлениям и выплатам учреждения
A52: на 01 января 2017 года
A53: Наименование показателя | E53: Код строки | F53: Код вида расходов Российской Федерации | G53: Объем финансового обеспечения, руб. ( с точностью до двух знаков после запятой-0,00)
G54: Всего | H54: в том числе:
H55: Субсидия на финансовое обеспечение выполнения муниципального задания | I55: Субсидии, предоставляемые в соответствии с абзацем пункта 1 статьи 78.1 Бюджетного кодекса Российской Федерации | J55: Субсидии на осуществление капитальных вложений | K55: поступления от оказания услуг (выполнения работ) на платной основе и от иной приносящей доход деятельности
K56: всего | L56: из них гранты
A57: 1 | E57: 2 | F57: 3 | H57: 5 | I57: 6 | J57: 7 | K57: 8 | L57: 9
A58: ПОСТУПЛЕНИЯ ОТ ДОХОДОВ,ВСЕГО: | E58: 100 | F58: х | G58: ='Таблица 2'!H11 -> 42934499 | H58: ='Таблица 2'!I11 -> 40385867 | I58: ='Таблица 2'!J11 -> 1682632 | J58: ='Таблица 2'!K11 -> 0 | K58: ='Таблица 2'!L11 -> 866000 | L58: ='Таблица 2'!M11 -> 0
A59: в том числе: доходы от собственности | E59: 110 | G59: ='Таблица 2'!H12 -> 0 | H59: ='Таблица 2'!I12 -> 0 | I59: ='Таблица 2'!J12 -> 0 | J59: ='Таблица 2'!K12 -> 0 | K59: ='Таблица 2'!L12 -> 0 | L59: ='Таблица 2'!M12 -> 0
A60: доходы от оказания услуг, работ | E60: 120 | G60: ='Таблица 2'!H13 -> 40385867 | H60: ='Таблица 2'!I13 -> 40385867 | I60: ='Таблица 2'!J13 -> 0 | J60: ='Таблица 2'!K13 -> 0 | K60: ='Таблица 2'!L13 -> 0 | L60: ='Таблица 2'!M13 -> 0
A61: доходы от штрафов, пеней иных сумм принудительного изъятия | E61: 130 | G61: ='Таблица 2'!H14 -> 0 | H61: ='Таблица 2'!I14 -> 0 | I61: ='Таблица 2'!J14 -> 0 | J61: ='Таблица 2'!K14 -> 0 | K61: ='Таблица 2'!L14 -> 0 | L61: ='Таблица 2'!M14 -> 0
A62: безвозмездные поступления от наднациональных организаций, правительств иностранных государств, международных финансовых организаций | E62: 140 | G62: ='Таблица 2'!H15 -> 0 | H62: ='Таблица 2'!I15 -> 0 | I62: ='Таблица 2'!J15 -> 0 | J62: ='Таблица 2'!K15 -> 0 | K62: ='Таблица 2'!L15 -> 0 | L62: ='Таблица 2'!M15 -> 0
A63: иные субсидии, предоставленные из бюджета | E63: 150 | G63: ='Таблица 2'!H16 -> 1682632 | H63: ='Таблица 2'!I16 -> 0 | I63: ='Таблица 2'!J16 -> 1682632 | J63: ='Таблица 2'!K16 -> 0 | K63: ='Таблица 2'!L16 -> 0 | L63: ='Таблица 2'!M16 -> 0
A64: прочие доходы | E64: 160 | G64: ='Таблица 2'!H17 -> 866000 | H64: ='Таблица 2'!I17 -> 0 | I64: ='Таблица 2'!J17 -> 0 | J64: ='Таблица 2'!K17 -> 0 | K64: ='Таблица 2'!L17 -> 866000 | L64: ='Таблица 2'!M17 -> 0
A65: в том числе родительская плата | E65: 161 | G65: ='Таблица 2'!H18 -> 0 | H65: ='Таблица 2'!I18 -> 0 | I65: ='Таблица 2'!J18 -> 0 | J65: ='Таблица 2'!K18 -> 0 | K65: ='Таблица 2'!L18 -> 0 | L65: ='Таблица 2'!M18 -> 0
A66: платные услуги | E66: 162 | G66: ='Таблица 2'!H19 -> 836000 | H66: ='Таблица 2'!I19 -> 0 | I66: ='Таблица 2'!J19 -> 0 | J66: ='Таблица 2'!K19 -> 0 | K66: ='Таблица 2'!L19 -> 836000 | L66: ='Таблица 2'!M19 -> 0
A67: добровольные пожертвования | E67: 163 | G67: ='Таблица 2'!H20 -> 30000 | H67: ='Таблица 2'!I20 -> 0 | I67: ='Таблица 2'!J20 -> 0 | J67: ='Таблица 2'!K20 -> 0 | K67: ='Таблица 2'!L20 -> 30000 | L67: ='Таблица 2'!M20 -> 0
A68: доходы от операций с активами | E68: 180 | G68: ='Таблица 2'!H21 -> 0 | H68: ='Таблица 2'!I21 -> 0 | I68: ='Таблица 2'!J21 -> 0 | J68: ='Таблица 2'!K21 -> 0 | K68: ='Таблица 2'!L21 -> 0 | L68: ='Таблица 2'!M21 -> 0
A69: ВЫПЛАТЫ ПО РАСХОДАМ,ВСЕГО: | E69: 200 | F69: х | G69: ='Таблица 2'!H22 -> 42934499 | H69: ='Таблица 2'!I22 -> 40385867 | I69: ='Таблица 2'!J22 -> 1682632 | J69: ='Таблица 2'!K22 -> 0 | K69: ='Таблица 2'!L22 -> 866000 | L69: ='Таблица 2'!M22 -> 0
A70: в том числе на: выплаты персоналу всего: | E70: 210 | F70: ='Таблица 2'!D23 ->  | G70: ='Таблица 2'!H23 -> 35069967 | H70: ='Таблица 2'!I23 -> 34269967 | I70: ='Таблица 2'!J23 -> 0 | J70: ='Таблица 2'!K23 -> 0 | K70: ='Таблица 2'!L23 -> 800000 | L70: ='Таблица 2'!M23 -> 0
A71: из них: оплата труда и начисления на выплаты по оплате труда | E71: 211 | F71: ='Таблица 2'!D24 ->  | G71: ='Таблица 2'!H24 -> 35069967 | H71: ='Таблица 2'!I24 -> 34269967 | I71: ='Таблица 2'!J24 -> 0 | J71: ='Таблица 2'!K24 -> 0 | K71: ='Таблица 2'!L24 -> 800000 | L71: ='Таблица 2'!M24 -> 0
A72: из них: оплата труда | F72: 111 | G72: ='Таблица 2'!H25 -> 26821015 | H72: ='Таблица 2'!I25 -> 26321015 | I72: ='Таблица 2'!J25 -> 0 | J72: ='Таблица 2'!K25 -> 0 | K72: ='Таблица 2'!L25 -> 500000 | L72: ='Таблица 2'!M25 -> 0
A73: начисления на выплаты по оплате труда | F73: 119 | G73: ='Таблица 2'!H26 -> 8248952 | H73: ='Таблица 2'!I26 -> 7948952 | I73: ='Таблица 2'!J26 -> 0 | J73: ='Таблица 2'!K26 -> 0 | K73: ='Таблица 2'!L26 -> 300000 | L73: ='Таблица 2'!M26 -> 0
A74: Социальные и иные выплаты населению, всего | E74: 220 | F74: ='Таблица 2'!D27 ->  | G74: ='Таблица 2'!H27 -> 3600 | H74: ='Таблица 2'!I27 -> 3600 | I74: ='Таблица 2'!J27 -> 0 | J74: ='Таблица 2'!K27 -> 0 | K74: ='Таблица 2'!L27 -> 0 | L74: ='Таблица 2'!M27 -> 0
A75: из них: прочие выплаты | F75: ='Таблица 2'!D28 -> 112 | G75: ='Таблица 2'!H28 -> 0 | H75: ='Таблица 2'!I28 -> 0 | I75: ='Таблица 2'!J28 -> 0 | J75: ='Таблица 2'!K28 -> 0 | K75: ='Таблица 2'!L28 -> 0 | L75: ='Таблица 2'!M28 -> 0
A76: прочие расходы (иные выплаты персоналу учреждений, за исключением фонда оплаты труда) | F76: ='Таблица 2'!D29 -> 112 | G76: ='Таблица 2'!H29 -> 3600 | H76: ='Таблица 2'!I29 -> 3600 | I76: ='Таблица 2'!J29 -> 0 | J76: ='Таблица 2'!K29 -> 0 | K76: ='Таблица 2'!L29 -> 0 | L76: ='Таблица 2'!M29 -> 0
A77: транспортные услуги | F77: ='Таблица 2'!D30 -> 112 | G77: ='Таблица 2'!H30 -> 0 | H77: ='Таблица 2'!I30 -> 0 | I77: ='Таблица 2'!J30 -> 0 | J77: ='Таблица 2'!K30 -> 0 | K77: ='Таблица 2'!L30 -> 0 | L77: ='Таблица 2'!M30 -> 0
A78: прочие услуги | F78: ='Таблица 2'!D31 -> 112 | G78: ='Таблица 2'!H31 -> 0 | H78: ='Таблица 2'!I31 -> 0 | I78: ='Таблица 2'!J31 -> 0 | J78: ='Таблица 2'!K31 -> 0 | K78: ='Таблица 2'!L31 -> 0 | L78: ='Таблица 2'!M31 -> 0
A79: Уплату налогов, сборов и иных платежей, всего | E79: 230 | F79: ='Таблица 2'!D32 ->  | G79: ='Таблица 2'!H32 -> 0 | H79: ='Таблица 2'!I32 -> 0 | I79: ='Таблица 2'!J32 -> 0 | J79: ='Таблица 2'!K32 -> 0 | K79: ='Таблица 2'!L32 -> 0 | L79: ='Таблица 2'!M32 -> 0
A80: безвозмездные перечисления организациям | E80: 240 | F80: ='Таблица 2'!D33 ->  | G80: ='Таблица 2'!H33 -> 0 | H80: ='Таблица 2'!I33 -> 0 | I80: ='Таблица 2'!J33 -> 0 | J80: ='Таблица 2'!K33 -> 0 | K80: ='Таблица 2'!L33 -> 0 | L80: ='Таблица 2'!M33 -> 0
A81: Прочие расходы (кроме расходов на закупку товаров, работ, услуг) | E81: 250 | F81: ='Таблица 2'!D34 ->  | G81: ='Таблица 2'!H34 -> 952903 | H81: ='Таблица 2'!I34 -> 952903 | I81: ='Таблица 2'!J34 -> 0 | J81: ='Таблица 2'!K34 -> 0 | K81: ='Таблица 2'!L34 -> 0 | L81: ='Таблица 2'!M34 -> 0
A82: прочие расходы (питание спортсменов) | F82: ='Таблица 2'!D35 -> 113 | G82: ='Таблица 2'!H35 -> 0 | H82: ='Таблица 2'!I35 -> 0 | I82: ='Таблица 2'!J35 -> 0 | J82: ='Таблица 2'!K35 -> 0 | K82: ='Таблица 2'!L35 -> 0 | L82: ='Таблица 2'!M35 -> 0
A83: прочие расходы (трудоустройство несовершеннолетних граждан(трудовые бригады) | F83: ='Таблица 2'!D36 -> 360 | G83: ='Таблица 2'!H36 -> 0 | H83: ='Таблица 2'!I36 -> 0 | I83: ='Таблица 2'!J36 -> 0 | J83: ='Таблица 2'!K36 -> 0 | K83: ='Таблица 2'!L36 -> 0 | L83: ='Таблица 2'!M36 -> 0
A84: прочие расходы (возмещение истцу расходов на государственную пошлину и уплата неустойки, оплата расходов на экспертизу судебным актом, возмещение ущерба должностным лицом по суду) | F84: ='Таблица 2'!D37 -> 831 | G84: ='Таблица 2'!H37 -> 0 | H84: ='Таблица 2'!I37 -> 0 | I84: ='Таблица 2'!J37 -> 0 | J84: ='Таблица 2'!K37 -> 0 | K84: ='Таблица 2'!L37 -> 0 | L84: ='Таблица 2'!M37 -> 0
A85: прочие расходы (уплата налога на имущество организаций, земельного налога) | F85: ='Таблица 2'!D38 -> 851 | G85: ='Таблица 2'!H38 -> 942103 | H85: ='Таблица 2'!I38 -> 942103 | I85: ='Таблица 2'!J38 -> 0 | J85: ='Таблица 2'!K38 -> 0 | K85: ='Таблица 2'!L38 -> 0 | L85: ='Таблица 2'!M38 -> 0
A86: прочие расходы (уплата транспортного налога, плата за загрязнение окружающей среды, госпошлина учреждения-ответчика по решению суда) | F86: ='Таблица 2'!D39 -> 852 | G86: ='Таблица 2'!H39 -> 10800 | H86: ='Таблица 2'!I39 -> 10800 | I86: ='Таблица 2'!J39 -> 0 | J86: ='Таблица 2'!K39 -> 0 | K86: ='Таблица 2'!L39 -> 0 | L86: ='Таблица 2'!M39 -> 0
A87: прочие расходы (уплата штрафов, пеней ( в т.ч. за несвоевременную уплату налогов и сборов) | F87: ='Таблица 2'!D40 -> 853 | G87: ='Таблица 2'!H40 -> 0 | H87: ='Таблица 2'!I40 -> 0 | I87: ='Таблица 2'!J40 -> 0 | J87: ='Таблица 2'!K40 -> 0 | K87: ='Таблица 2'!L40 -> 0 | L87: ='Таблица 2'!M40 -> 0
A88: Расходы на закупку товаров, работ, услуг ,всего | E88: 260 | F88: х | G88: ='Таблица 2'!H41 -> 6908029 | H88: ='Таблица 2'!I41 -> 5159397 | I88: ='Таблица 2'!J41 -> 1682632 | J88: ='Таблица 2'!K41 -> 0 | K88: ='Таблица 2'!L41 -> 66000 | L88: ='Таблица 2'!M41 -> 0
A89: Закупка товаров, работ, услуг на капитальный ремонт государственного (муниципального) имущества | E89: 261 | F89: ='Таблица 2'!D42 ->  | G89: ='Таблица 2'!H42 -> 0 | H89: ='Таблица 2'!I42 -> 0 | I89: ='Таблица 2'!J42 -> 0 | J89: ='Таблица 2'!K42 -> 0 | K89: ='Таблица 2'!L42 -> 0 | L89: ='Таблица 2'!M42 -> 0
A90: услуги по содержанию имущества | F90: ='Таблица 2'!D43 -> 243 | G90: ='Таблица 2'!H43 -> 0 | H90: ='Таблица 2'!I43 -> 0 | I90: ='Таблица 2'!J43 -> 0 | J90: ='Таблица 2'!K43 -> 0 | K90: ='Таблица 2'!L43 -> 0 | L90: ='Таблица 2'!M43 -> 0
A91: прочие услуги | F91: ='Таблица 2'!D44 -> 243 | G91: ='Таблица 2'!H44 -> 0 | H91: ='Таблица 2'!I44 -> 0 | I91: ='Таблица 2'!J44 -> 0 | J91: ='Таблица 2'!K44 -> 0 | K91: ='Таблица 2'!L44 -> 0 | L91: ='Таблица 2'!M44 -> 0
A92: Затраты на на строительство объектов недвижимого имущества государственными (муниципальными) учреждениями | E92: 262 | G92: ='Таблица 2'!H45 -> 0 | H92: ='Таблица 2'!I45 -> 0 | I92: ='Таблица 2'!J45 -> 0 | J92: ='Таблица 2'!K45 -> 0 | K92: ='Таблица 2'!L45 -> 0 | L92: ='Таблица 2'!M45 -> 0
A93: прочие услуги | F93: ='Таблица 2'!D46 -> 417 | G93: ='Таблица 2'!H46 -> 0 | H93: ='Таблица 2'!I46 -> 0 | I93: ='Таблица 2'!J46 -> 0 | J93: ='Таблица 2'!K46 -> 0 | K93: ='Таблица 2'!L46 -> 0 | L93: ='Таблица 2'!M46 -> 0
A94: Прочая закупка товаров, работ и услуг для обеспечения государственных (муниципальных) нужд | E94: 263 | F94: ='Таблица 2'!D47 ->  | G94: ='Таблица 2'!H47 -> 6908029 | H94: ='Таблица 2'!I47 -> 5159397 | I94: ='Таблица 2'!J47 -> 1682632 | J94: ='Таблица 2'!K47 -> 0 | K94: ='Таблица 2'!L47 -> 66000 | L94: ='Таблица 2'!M47 -> 0
A95: услуги связи | F95: ='Таблица 2'!D48 -> 244 | G95: ='Таблица 2'!H48 -> 70382 | H95: ='Таблица 2'!I48 -> 67382 | I95: ='Таблица 2'!J48 -> 0 | J95: ='Таблица 2'!K48 -> 0 | K95: ='Таблица 2'!L48 -> 3000 | L95: ='Таблица 2'!M48 -> 0
A96: транспортные услуги | F96: ='Таблица 2'!D49 -> 244 | G96: ='Таблица 2'!H49 -> 0 | H96: ='Таблица 2'!I49 -> 0 | I96: ='Таблица 2'!J49 -> 0 | J96: ='Таблица 2'!K49 -> 0 | K96: ='Таблица 2'!L49 -> 0 | L96: ='Таблица 2'!M49 -> 0
A97: коммунальные услуги | F97: ='Таблица 2'!D50 -> 244 | G97: ='Таблица 2'!H50 -> 2301813 | H97: ='Таблица 2'!I50 -> 2298813 | I97: ='Таблица 2'!J50 -> 0 | J97: ='Таблица 2'!K50 -> 0 | K97: ='Таблица 2'!L50 -> 3000 | L97: ='Таблица 2'!M50 -> 0
A98: арендная плата за пользование имущества | F98: ='Таблица 2'!D51 -> 244 | G98: ='Таблица 2'!H51 -> 0 | H98: ='Таблица 2'!I51 -> 0 | I98: ='Таблица 2'!J51 -> 0 | J98: ='Таблица 2'!K51 -> 0 | K98: ='Таблица 2'!L51 -> 0 | L98: ='Таблица 2'!M51 -> 0
A99: услуги по содержанию имущества | F99: ='Таблица 2'!D52 -> 244 | G99: ='Таблица 2'!H52 -> 495849 | H99: ='Таблица 2'!I52 -> 479589 | I99: ='Таблица 2'!J52 -> 16260 | J99: ='Таблица 2'!K52 -> 0 | K99: ='Таблица 2'!L52 -> 0 | L99: ='Таблица 2'!M52 -> 0
A100: прочие услуги | F100: ='Таблица 2'!D53 -> 244 | G100: ='Таблица 2'!H53 -> 412298 | H100: ='Таблица 2'!I53 -> 395798 | I100: ='Таблица 2'!J53 -> 1500 | J100: ='Таблица 2'!K53 -> 0 | K100: ='Таблица 2'!L53 -> 15000 | L100: ='Таблица 2'!M53 -> 0
A101: прочие расходы (призы,кубки) | F101: ='Таблица 2'!D54 -> 244 | G101: ='Таблица 2'!H54 -> 0 | H101: ='Таблица 2'!I54 -> 0 | I101: ='Таблица 2'!J54 -> 0 | J101: ='Таблица 2'!K54 -> 0 | K101: ='Таблица 2'!L54 -> 0 | L101: ='Таблица 2'!M54 -> 0
A102: приобретение основных средств | F102: ='Таблица 2'!D55 -> 244 | G102: ='Таблица 2'!H55 -> 1863595 | H102: ='Таблица 2'!I55 -> 1844845 | I102: ='Таблица 2'!J55 -> 3750 | J102: ='Таблица 2'!K55 -> 0 | K102: ='Таблица 2'!L55 -> 15000 | L102: ='Таблица 2'!M55 -> 0
A103: приобретение материальных запасов | F103: ='Таблица 2'!D56 -> 244 | G103: ='Таблица 2'!H56 -> 1764092 | H103: ='Таблица 2'!I56 -> 72970 | I103: ='Таблица 2'!J56 -> 1661122 | J103: ='Таблица 2'!K56 -> 0 | K103: ='Таблица 2'!L56 -> 30000 | L103: ='Таблица 2'!M56 -> 0
A104: Поступление финансовых активов, всего: | E104: 300 | F104: ='Таблица 2'!D57 -> х | G104: ='Таблица 2'!H57 -> 0 | H104: ='Таблица 2'!I57 -> 0 | I104: ='Таблица 2'!J57 -> 0 | J104: ='Таблица 2'!K57 -> 0 | K104: ='Таблица 2'!L57 -> 0 | L104: ='Таблица 2'!M57 -> 0
A105: из них: увеличение остатков средств | E105: 310 | F105: ='Таблица 2'!D58 ->  | G105: ='Таблица 2'!H58 -> 0 | H105: ='Таблица 2'!I58 -> 0 | I105: ='Таблица 2'!J58 -> 0 | J105: ='Таблица 2'!K58 -> 0 | K105: ='Таблица 2'!L58 -> 0 | L105: ='Таблица 2'!M58 -> 0
A106: Прочие поступления | E106: 320 | F106: ='Таблица 2'!D59 ->  | G106: ='Таблица 2'!H59 -> 0 | H106: ='Таблица 2'!I59 -> 0 | I106: ='Таблица 2'!J59 -> 0 | J106: ='Таблица 2'!K59 -> 0 | K106: ='Таблица 2'!L59 -> 0 | L106: ='Таблица 2'!M59 -> 0
A107: Выбытие финансовых активов, всего | E107: 400 | F107: ='Таблица 2'!D60 ->  | G107: ='Таблица 2'!H60 -> 0 | H107: ='Таблица 2'!I60 -> 0 | I107: ='Таблица 2'!J60 -> 0 | J107: ='Таблица 2'!K60 -> 0 | K107: ='Таблица 2'!L60 -> 0 | L107: ='Таблица 2'!M60 -> 0
A108: из них: уменьшение остатков средств | E108: 410 | F108: ='Таблица 2'!D61 ->  | G108: ='Таблица 2'!H61 -> 0 | H108: ='Таблица 2'!I61 -> 0 | I108: ='Таблица 2'!J61 -> 0 | J108: ='Таблица 2'!K61 -> 0 | K108: ='Таблица 2'!L61 -> 0 | L108: ='Таблица 2'!M61 -> 0
A109: прочие выбытия | E109: 420 | F109: ='Таблица 2'!D62 ->  | G109: ='Таблица 2'!H62 -> 0 | H109: ='Таблица 2'!I62 -> 0 | I109: ='Таблица 2'!J62 -> 0 | J109: ='Таблица 2'!K62 -> 0 | K109: ='Таблица 2'!L62 -> 0 | L109: ='Таблица 2'!M62 -> 0
A110: Остаток средств на начало года | E110: 500 | F110: ='Таблица 2'!D63 -> х | G110: ='Таблица 2'!H63 -> 0 | H110: ='Таблица 2'!I63 -> 0 | I110: ='Таблица 2'!J63 -> 0 | J110: ='Таблица 2'!K63 -> 0 | K110: ='Таблица 2'!L63 -> 0 | L110: ='Таблица 2'!M63 -> 0
A111: Остаток средств на конец года | E111: 600 | F111: ='Таблица 2'!D64 -> х | G111: ='Таблица 2'!H64 -> 0 | H111: ='Таблица 2'!I64 -> 0 | I111: ='Таблица 2'!J64 -> 0 | J111: ='Таблица 2'!K64 -> 0 | K111: ='Таблица 2'!L64 -> 0 | L111: ='Таблица 2'!M64 -> 0
A112: IV. Показатели по поступлениям и выплатам учреждения
A113: на 01 января 2017 года
A114: Наименование показателя | B114: Код строки | C114: Код бюджетной классификации Российской Федерации | D114: Сумма выплат по расходам на закупку товаров, работ и услуг, руб. ( с точностью до двух знаков после запятой-0,00)
D115: всего на закупки | G115: в том числе:
G116: Федеральным законом от 05 апреля 2013 года №44-ФЗ "О контрактной системе в сфере закупок товаров ,работ, услуг для обеспечения государственных и муниципальных нужд" | J116: в соответствии с Федеральным законом от 18 июля 2011 года №223-ФЗ "О закупках товаров, работ, услуг отдельными видами юридических лиц"
D117: на 2017 г. очередной финансовый год | E117: на 2018 г. 1-ый год планового периода | F117: на 2019 г. 2-ый год планового периода | G117: на 2017 г. очередной финансовый год | H117: на 2018 г. 1-ый год планового периода | I117: на 2019 г. 2-ый год планового периода | J117: на 2017 г. очередной финансовый год | K117: на 2018 г. 1-ый год планового периода | L117: на 2019 г. 2-ый год планового периода
A118: 1 | B118: 2 | C118: 3 | D118: 4 | E118: 5 | F118: 6 | G118: 7 | H118: 8 | I118: 9 | J118: 10 | K118: 11 | L118: 12
A119: Выплаты по расходам на закупку товаров, работ ,услуг, всего: | B119: 0001 | C119: х | D119: ='Таблица 2'!E71 -> 6908029 | E119: ='Таблица 2'!F71 -> 6980958 | F119: ='Таблица 2'!G71 -> 7089140 | G119: ='Таблица 2'!H71 -> 6908029 | H119: ='Таблица 2'!I71 -> 6980958 | I119: ='Таблица 2'!J71 -> 7089140 | J119: ='Таблица 2'!K71 -> 0 | K119: ='Таблица 2'!L71 -> 0 | L119: ='Таблица 2'!M71 -> 0
A120: в том числе: на оплату контрактов заключенных до начала очередного финансового года : | B120: 1001 | C120: х | D120: ='Таблица 2'!E72 -> 1661122 | E120: ='Таблица 2'!F72 -> 1661122 | F120: ='Таблица 2'!G72 -> 1661122 | G120: ='Таблица 2'!H72 -> 1661122 | H120: ='Таблица 2'!I72 -> 1661122 | I120: ='Таблица 2'!J72 -> 1661122 | J120: ='Таблица 2'!K72 -> 0 | K120: ='Таблица 2'!L72 -> 0 | L120: ='Таблица 2'!M72 -> 0
A121: на закупку товаров работ, услуг погоду начала закупки: | B121: 2001 | D121: ='Таблица 2'!E73 -> 5246907 | E121: ='Таблица 2'!F73 -> 5319836 | F121: ='Таблица 2'!G73 -> 5428018 | G121: ='Таблица 2'!H73 -> 5246907 | H121: ='Таблица 2'!I73 -> 5319836 | I121: ='Таблица 2'!J73 -> 5428018 | J121: ='Таблица 2'!K73 -> 0 | K121: ='Таблица 2'!L73 -> 0 | L121: ='Таблица 2'!M73 -> 0
A122: V.Сведения о средствах, поступившых во временное распоряжение учреждения
A124: на 01 января 2017 год
A125: (очередной финансовый год)
A126: Наименование показателя | F126: Код строки | I126: Сумма ( руб. с точностью до двух знаков после запятой-0,00)
A127: 1 | F127: 2 | I127: 3
A128: Остаток средств на начало года | F128: 010 | I128: ='Таблица 1 '!E38 -> 0
A129: Остаток средств наконец года | F129: 020 | I129: ='Таблица 1 '!E39 -> 0
A130: Поступление | F130: 030 | I130: ='Таблица 1 '!E40 -> 0
A131: Выбытие | F131: 040 | I131: ='Таблица 1 '!E41 -> 0
A132: VI. Справочная информация
A134: Наименование показателя | F134: Код строки | I134: Сумма ( руб. с точностью до двух знаков после запятой-0,00)
A135: 1 | F135: 2 | I135: 3
A136: Объем публичных обязательств, всего: | F136: 010 | I136: ='Таблица 1 '!E44 -> 0
A137: Объем бюджетных инвестиций (в части переданных полномочий муниципального заказчика в соответствии с Бюджетным кодексом Российской Федерации),всего: | F137: 020 | I137: ='Таблица 1 '!E45 -> 0
A138: Объем средств, поступивших во временное распоряжение ,всего | F138: 030 | I138: ='Таблица 1 '!E46 -> 0
A140: И.о.руководителя учреждения | H140: А.А.Пономаренко
A142: Главный бухгалтер учреждения | H142: И.Н.Садило
A145: Исполнитель | H145: И.Н.Садило
A147: Согласовано:
A149: Начальник финансово-экономического
A150: отдела | H150: Н.А. Вялкова
A152: И.о. директора МКУ
A153: «Централизованная бухгалтерия
A154: учреждений образования» | H154: И.А. Дзюба
A156: Начальник отдела планирования
A157: и анализа МКУ
A158: «Централизованная бухгалтерия
A159: учреждений образования» | H159: Е.Е. Гончар
A180: Заключение
B181: на обоснованность расчетов, приведенных в пояснительной записке к Плану финансово-хозяйственной деятельности на 2017 год и плановый период 2018-2019 годов, и соответствия показателей в информации о планируемых объемах расходных обязательств по учреждению:
B182: =F13 -> Муниципальное бюджетное общеобразовательное учреждение "Средняя общеобразовательная школа № 28 " г. Уссурийска Уссурийского городского округа
B184: наименование учреждения
B186: Планируемые объемы расходных обязательств по учреждению:
C188: Наименование показателя | H188: Очередной финансовый год 2017г.
C190: Поступления, всего: | H190: ='Таблица 2'!H11 -> 42934499
C191: в том числе:
C192: доходы от собственности | H192: ='Таблица 2'!H12 -> 0
C193: доходы от оказания услуг, работ | H193: ='Таблица 2'!H13 -> 40385867
C194: доходы от штрафов, пеней иных сумм принудительного изъятия | H194: ='Таблица 2'!H14 -> 0
C195: безвозмездные поступления от наднациональных организаций, правительств иностранных государств, международных финансовых организаций | H195: ='Таблица 2'!H15 -> 0
C196: иные субсидии, предоставленные из бюджета | H196: ='Таблица 2'!H16 -> 1682632
C197: прочие доходы | H197: ='Таблица 2'!H17 -> 866000
C198: в том числе родительская плата | H198: ='Таблица 2'!H18 -> 0
C199: платные услуги | H199: ='Таблица 2'!H19 -> 836000
C200: добровольные пожертвования | H200: ='Таблица 2'!H20 -> 30000
C201: доходы от операций с активами | H201: ='Таблица 2'!H21 -> 0
C202: Расходы, всего | H202: ='Таблица 2'!H22 -> 42934499
B205: План финансово-хозяйственной деятельности на 2017 год и плановый период 2018-2019 годов (далее - План) по учреждению
B206: =F13 -> Муниципальное бюджетное общеобразовательное учреждение "Средняя общеобразовательная школа № 28 " г. Уссурийска Уссурийского городского округа
B208: наименование учреждения
B209: разработан в соответствии с действующим Порядком, утвержденным постановлением администрации Уссурийского городского округа от 08.07.2011г. №1658-НПА.
B210: Расчеты, приведенные в пояснительной записке, соответствуют информации о планируемых объемах расходных обязательств. Расчеты обоснованны и экономически целесообразны.
B214: Начальник финансово-экономического отдела управления образования и молодежной политики | K214: Н. А. Вялкова
B216: И.о. директора МКУ ЦБ УО | K216: И. А. Дзюба
J218: ___________ 20 ___ г.
B219: Е.Е. Гончар
B220: 32-43-35
